fUSD/lending_fUSD_20240611
["ID","MTS","AMOUNT","RATE_DAILY","PERIOD"]
[329125124,1718124655663,-500.0,0.00022053,2]
[329125125,1718124655678,-500.0,0.00022053,2]
[329125126,1718124655693,-500.0,0.00022053,2]
[329125127,1718124655707,-150.0,0.00022053,10]
[329125128,1718124655722,-500.0,0.00022054,2]
[329125129,1718124655740,-151.0,0.00022054,7]
[329125130,1718124655755,-500.0,0.00022054,2]
[329125131,1718124655768,-500.0,0.00022054,2]
[329125132,1718124655783,-562.97,0.00022054,2]
[329125133,1718124655797,-500.0,0.00022054,2]
[329125134,1718124655812,-500.0,0.00022054,2]
[329125135,1718124655827,-500.0,0.00022054,2]
[329125136,1718124655841,-425.81419879,0.00022054,2]
[329125137,1718124655859,-74.18580121,0.00022054,2]
[329125138,1718124655874,-280.56676815,0.00022054,2]
[329125139,1718124655891,-355.50323185,0.00022054,2]
[329125140,1718124655906,-500.0,0.00022054,2]
[329125141,1718124655919,-554.91,0.00022054,2]
[329125142,1718124655934,-419.33264385,0.00022054,2]
[329125143,1718124655951,-80.66735615,0.00022054,2]
[329125144,1718124655966,-364.95264386,0.00022054,2]
[329125145,1718124655996,-135.04735614,0.00022054,2]
[329125146,1718124656010,-151.0,0.00022054,7]
[329125147,1718124656023,-151.0,0.00022054,7]
[329125148,1718124656038,-151.0,0.00022054,7]
[329125149,1718124656053,-275.558175,0.00022054,7]
[329125150,1718124656067,-500.0,0.00022054,2]
[329125151,1718124656082,-212.49659212,0.00022054,2]
[329125152,1718124656096,-500.0,0.00022054,2]
[329125153,1718124656111,-500.0,0.00022054,2]
[329125154,1718124656124,-1006.14787674,0.00022054,2]
[329125155,1718124656142,-34.71212326,0.00022054,2]
[329125156,1718124656156,-500.0,0.00022054,2]
[329125157,1718124656178,-511.89,0.00022054,2]
[329125158,1718124656192,-500.0,0.00022054,2]
[329125159,1718124656207,-871.7,0.00022054,2]
[329125160,1718124656221,-500.0,0.00022054,2]
[329125161,1718124656237,-500.0,0.00022054,2]
[329125162,1718124656251,-500.0,0.00022054,2]
[329125163,1718124656265,-500.0,0.00022054,2]
[329125164,1718124656280,-500.0,0.00022054,2]
[329125165,1718124656295,-500.0,0.00022054,2]
[329125166,1718124656309,-500.0,0.00022054,2]
[329125167,1718124656323,-726.9,0.00022054,2]
[329125168,1718124656338,-500.0,0.00022054,2]
[329125169,1718124656352,-500.0,0.00022054,2]
[329125170,1718124656368,-585.43,0.00022054,2]
[329125171,1718124656382,-500.0,0.00022054,2]
[329125172,1718124656396,-519.85962006,0.00022054,2]
[329125173,1718124656411,-500.0,0.00022054,2]
[329125174,1718124656426,-722.11,0.00022054,2]
[329125175,1718124656444,-500.0,0.00022054,2]
[329125176,1718124656458,-500.0,0.00022054,2]
[329125177,1718124656473,-500.0,0.00022054,2]
[329125178,1718124656490,-657.83,0.00022054,2]
[329125179,1718124656505,-582.85,0.00022054,2]
[329125180,1718124656520,-567.44,0.00022054,2]
[329125181,1718124656535,-500.0,0.00022054,2]
[329125182,1718124656549,-500.0,0.00022054,2]
[329125183,1718124656564,-500.0,0.00022054,2]
[329125184,1718124656578,-500.0,0.00022054,2]
[329125185,1718124656592,-411.24912889,0.00022054,2]
[329125186,1718124656606,-500.0,0.00022054,2]
[329125187,1718124656621,-226.92818452,0.00022054,2]
[329125188,1718124656640,-273.07181548,0.00022054,2]
[329125189,1718124656655,-695.52,0.00022054,2]
[329125190,1718124656669,-500.0,0.00022054,2]
[329125191,1718124656683,-500.0,0.00022054,2]
[329125192,1718124656698,-639.32997611,0.00022054,2]
[329125193,1718124656712,-521.28,0.00022054,2]
[329125194,1718124656723,-500.0,0.00022054,2]
[329125195,1718124656735,-556.23,0.00022054,2]
[329125196,1718124656746,-500.0,0.00022054,2]
[329125197,1718124656756,-616.99,0.00022054,2]
[329125198,1718124656768,-500.0,0.00022054,2]
[329125199,1718124656778,-353.08958951,0.00022054,2]
[329125200,1718124656790,-500.0,0.00022054,2]
[329125201,1718124656801,-500.0,0.00022054,2]
[329125202,1718124656813,-500.0,0.00022054,2]
[329125203,1718124656823,-500.0,0.00022054,2]
[329125204,1718124656834,-500.0,0.00022054,2]
[329125205,1718124656844,-500.0,0.00022054,2]
[329125206,1718124656854,-164.60566393,0.00022054,2]
[329125207,1718124656865,-666.67,0.00022054,2]
[329125208,1718124656875,-500.0,0.00022054,2]
[329125209,1718124656886,-500.0,0.00022054,2]
[329125210,1718124656897,-732.1,0.00022054,2]
[329125211,1718124656907,-500.0,0.00022054,2]
[329125212,1718124656917,-500.0,0.00022054,2]
[329125213,1718124656928,-823.38,0.00022054,2]
[329125214,1718124656939,-500.0,0.00022054,2]
[329125215,1718124656951,-500.0,0.00022054,2]
[329125216,1718124656964,-151.0,0.00022054,7]
[329125217,1718124656974,-1064.41,0.00022054,2]
[329125218,1718124656986,-552.93,0.00022054,2]
[329125219,1718124656997,-500.0,0.00022054,2]
[329125220,1718124657008,-500.0,0.00022054,2]
[329125221,1718124657019,-500.0,0.00022054,2]
[329125222,1718124657029,-528.61,0.00022054,2]
[329125223,1718124657040,-512.73,0.00022054,2]
[329125224,1718124657051,-515.6670683,0.00022054,2]
[329125225,1718124657062,-500.0,0.00022054,2]
[329125226,1718124657072,-500.0,0.00022054,2]
[329125227,1718124657083,-500.0,0.00022054,2]
[329125228,1718124657093,-500.0,0.00022054,2]
[329125229,1718124657103,-500.0,0.00022054,2]
[329125230,1718124657550,-500.0,0.00022054,2]
[329125231,1718124657583,-500.0,0.00022054,2]
[329125232,1718124657610,-500.0,0.00022054,2]
[329125233,1718124657621,-906.89,0.00022054,2]
[329125234,1718124657631,-500.0,0.00022054,2]
[329125235,1718124657641,-333.99414004,0.00022054,2]
[329125236,1718124657651,-500.0,0.00022054,2]
[329125237,1718124657661,-500.0,0.00022054,2]
[329125238,1718124657671,-500.0,0.00022054,2]
[329125239,1718124657681,-500.0,0.00022054,2]
[329125240,1718124657691,-267.5,0.00022054,2]
[329125241,1718124657702,-500.0,0.00022054,2]
[329125242,1718124657712,-500.0,0.00022054,2]
[329125243,1718124657722,-500.0,0.00022054,2]
[329125244,1718124657733,-471.62405313,0.00022054,2]
[329125245,1718124657743,-500.0,0.00022054,2]
[329125246,1718124657754,-500.0,0.00022054,2]
[329125247,1718124657764,-362.78121951,0.00022054,2]
[329125248,1718124657781,-137.21878049,0.00022054,2]
[329125249,1718124657792,-485.49998408,0.00022054,2]
[329125250,1718124657802,-500.0,0.00022054,2]
[329125251,1718124657812,-500.0,0.00022054,2]
[329125252,1718124657822,-500.0,0.00022054,2]
[329125253,1718124657832,-547.10224801,0.00022054,2]
[329125254,1718124657842,-500.0,0.00022054,2]
[329125255,1718124657852,-677.92,0.00022054,2]
[329125256,1718124657862,-500.0,0.00022054,2]
[329125257,1718124657874,-500.0,0.00022054,2]
[329125258,1718124657884,-500.0,0.00022054,2]
[329125259,1718124657895,-575.26,0.00022054,2]
[329125260,1718124657905,-500.0,0.00022054,2]
[329125261,1718124657915,-500.0,0.00022054,2]
[329125262,1718124657926,-604.51898746,0.00022054,2]
[329125263,1718124657939,-534.25101254,0.00022054,2]
[329125264,1718124657949,-258.243269,0.00022054,7]
[329125265,1718124657959,-500.0,0.00022054,2]
[329125266,1718124657968,-500.0,0.00022054,2]
[329125267,1718124657978,-151.0,0.00022054,7]
[329125268,1718124657989,-151.0,0.00022054,7]
[329125269,1718124657999,-500.0,0.00022054,2]
[329125270,1718124658008,-787.95,0.00022054,2]
[329125271,1718124658018,-1478.04,0.00022054,2]
[329125272,1718124658028,-500.0,0.00022054,2]
[329125273,1718124658039,-500.0,0.00022054,2]
[329125274,1718124658048,-601.9926165,0.00022054,2]
[329125275,1718124658062,-90.3873835,0.00022054,2]
[329125276,1718124658072,-500.0,0.00022054,2]
[329125277,1718124658082,-500.0,0.00022054,2]
[329125278,1718124658094,-242.96530778,0.00022054,2]
[329125279,1718124658104,-26.13977396,0.00022054,2]
[329125280,1718124658158,-548.86650453,0.00021917,2]
[329125281,1718124658178,-473.86022604,0.00022054,2]
[329125282,1718124658189,-892.6,0.00022054,2]
[329125283,1718124658199,-500.0,0.00022054,2]
[329125284,1718124658210,-500.0,0.00022054,2]
[329125285,1718124658220,-724.4,0.00022054,2]
[329125286,1718124658229,-500.0,0.00022054,2]
[329125287,1718124658241,-500.0,0.00022054,2]
[329125288,1718124658251,-787.15,0.00022054,2]
[329125289,1718124658261,-500.0,0.00022054,2]
[329125290,1718124658271,-743.17,0.00022054,2]
[329125291,1718124658281,-1169.19,0.00022054,2]
[329125292,1718124658291,-500.0,0.00022054,2]
[329125293,1718124658301,-500.0,0.00022054,2]
[329125294,1718124658311,-160.76333943,0.00022054,2]
[329125295,1718124659459,-107.20373635,0.00022054,2]
[329125296,1718124659476,-390.36292422,0.00022054,2]
[329125297,1718124659489,-590.43,0.00022054,2]
[329125298,1718124659500,-7.20707578,0.00022054,2]
[329125299,1718124659513,-492.79292422,0.00022054,2]
[329125300,1718124659523,-1348.42,0.00022054,2]
[329125301,1718124659533,-1307.37,0.00022054,2]
[329125302,1718124659543,-500.0,0.00022054,2]
[329125303,1718124659553,-500.0,0.00022054,2]
[329125304,1718124659564,-500.0,0.00022054,2]
[329125305,1718124659575,-552.73,0.00022054,2]
[329125306,1718124659585,-591.15,0.00022054,2]
[329125307,1718124659596,-500.0,0.00022054,2]
[329125308,1718124659606,-500.0,0.00022054,2]
[329125309,1718124659617,-500.0,0.00022054,2]
[329125310,1718124659628,-500.0,0.00022054,2]
[329125311,1718124659637,-500.0,0.00022054,2]
[329125312,1718124659648,-500.0,0.00022054,2]
[329125313,1718124659658,-1314.06,0.00022054,2]
[329125314,1718124659668,-500.0,0.00022054,2]
[329125315,1718124659679,-500.0,0.00022054,2]
[329125316,1718124659689,-154.03931833,0.00022054,2]
[329125317,1718124660135,-2122.79068167,0.00022054,2]
[329125318,1718124660146,-500.0,0.00022054,2]
[329125319,1718124660157,-616.53,0.00022054,2]
[329125320,1718124660177,-500.95,0.00022054,2]
[329125321,1718124660189,-500.0,0.00022054,2]
[329125322,1718124660200,-1658.22,0.00022054,2]
[329125323,1718124660211,-500.0,0.00022054,2]
[329125324,1718124660221,-500.0,0.00022054,2]
[329125325,1718124660232,-500.0,0.00022054,2]
[329125326,1718124660246,-500.0,0.00022054,2]
[329125327,1718124660256,-366.381256,0.00022054,2]
[329125328,1718124660381,-681.378744,0.00022054,2]
[329125329,1718124660391,-184.146256,0.00022054,2]
[329125330,1718124660403,-742.2449,0.00022054,2]
[329125331,1718124660417,-137.968844,0.00022054,2]
[329125332,1718124660427,-500.0,0.00022054,2]
[329125333,1718124660438,-505.40566577,0.00022054,2]
[329125334,1718124660449,-500.0,0.00022054,2]
[329125335,1718124660460,-20.02549023,0.00022054,2]
[329125336,1718124660473,-477.47355398,0.00022054,2]
[329125337,1718124660486,-611.89095579,0.00022054,2]
[329125338,1718124660501,-660.31,0.00022054,2]
[329125339,1718124660512,-120.27837015,0.00022054,2]
[329125340,1718124660526,-379.72162985,0.00022054,2]
[329125341,1718124660536,-485.77837015,0.00022054,2]
[329125342,1718124660549,-43.30162985,0.00022054,2]
[329125343,1718124660560,-500.0,0.00022054,2]
[329125344,1718124660570,-199.54837015,0.00022054,2]
[329125345,1718124660584,-300.45162985,0.00022054,2]
[329125346,1718124660595,-119.95913015,0.00022054,7]
[329125347,1718124660608,-31.04086985,0.00022054,7]
[329125348,1718124660619,-151.0,0.00022054,7]
[329125349,1718124660630,-500.0,0.00022054,2]
[329125350,1718124660640,-500.0,0.00022054,2]
[329125351,1718124660651,-483.08088215,0.00022054,2]
[329125352,1718124661669,-16.91911785,0.00022054,2]
[329125353,1718124661679,-18.44327949,0.00022054,2]
[329125354,1718124661693,-521.75650369,0.00022054,2]
[329125355,1718124661705,-154.42021682,0.00022054,2]
[329125356,1718124661716,-500.0,0.00022054,2]
[329125357,1718124661727,-500.0,0.00022054,2]
[329125358,1718124661738,-154.169494,0.00022054,7]
[329125359,1718124661749,-154.169494,0.00022054,7]
[329125360,1718124661760,-2739.47,0.00022054,2]
[329125361,1718124661770,-80.67219173,0.00022054,2]
[329125362,1718124661784,-419.32780827,0.00022054,2]
[329125363,1718124661794,-1057.68,0.00022054,2]
[329125364,1718124661806,-500.0,0.00022054,2]
[329125365,1718124661816,-1597.64219173,0.00022054,2]
[329125366,1718124661836,-349.84500001,0.00022054,2]
[329125367,1718124661863,-1999.207267,0.00021917,2]
[329125368,1718124661874,-96.16280826,0.00022054,2]
[329125369,1718124661885,-151.0,0.00022054,7]
[329125370,1718124661895,-151.0,0.00022054,7]
[329125371,1718124661906,-154.169494,0.00022054,7]
[329125372,1718124661916,-154.169494,0.00022054,7]
[329125373,1718124661927,-837.06,0.00022054,2]
[329125374,1718124661938,-500.0,0.00022054,2]
[329125375,1718124661949,-500.0,0.00022054,2]
[329125376,1718124661958,-500.0,0.00022054,2]
[329125377,1718124661969,-307.61615755,0.00022054,2]
[329125378,1718124661982,-192.38384245,0.00022054,2]
[329125379,1718124661994,-500.0,0.00022054,2]
[329125380,1718124662004,-616.4,0.00022054,2]
[329125381,1718124662014,-2790.56,0.00022054,2]
[329125382,1718124662024,-500.0,0.00022054,2]
[329125383,1718124662035,-500.0,0.00022054,2]
[329125384,1718124662045,-2686.38,0.00022054,2]
[329125385,1718124662055,-929.68,0.00022054,2]
[329125386,1718124662066,-500.0,0.00022054,2]
[329125387,1718124662076,-500.0,0.00022054,2]
[329125388,1718124662086,-500.0,0.00022054,2]
[329125389,1718124662096,-1752.78,0.00022054,2]
[329125390,1718124662106,-1253.16,0.00022054,2]
[329125391,1718124662116,-500.0,0.00022054,2]
[329125392,1718124662126,-502.55,0.00022054,2]
[329125393,1718124662136,-799.53,0.00022054,2]
[329125394,1718124662146,-500.0,0.00022054,2]
[329125395,1718124662156,-500.0,0.00022054,2]
[329125396,1718124662174,-1273.93,0.00022054,2]
[329125397,1718124662191,-500.0,0.00022054,2]
[329125398,1718124662201,-785.95,0.00022054,2]
[329125399,1718124662212,-500.0,0.00022054,2]
[329125400,1718124662223,-695.43,0.00022054,2]
[329125401,1718124662234,-724.9,0.00022054,2]
[329125402,1718124662246,-552.01,0.00022054,2]
[329125403,1718124662256,-154.05089175,0.00022054,2]
[329125404,1718124662266,-500.0,0.00022054,2]
[329125405,1718124662277,-500.0,0.00022054,2]
[329125406,1718124662291,-500.0,0.00022054,2]
[329125407,1718124662302,-500.0,0.00022054,2]
[329125408,1718124662312,-500.0,0.00022054,2]
[329125409,1718124662323,-968.95,0.00022054,2]
[329125410,1718124662334,-500.0,0.00022054,2]
[329125411,1718124662344,-500.0,0.00022054,2]
[329125412,1718124662355,-500.0,0.00022054,2]
[329125413,1718124662365,-1084.49,0.00022054,2]
[329125414,1718124662376,-500.0,0.00022054,2]
[329125415,1718124662386,-536.98,0.00022054,2]
[329125416,1718124662396,-151.0,0.00022054,7]
[329125417,1718124662407,-151.0,0.00022054,7]
[329125418,1718124662420,-500.0,0.00022054,2]
[329125419,1718124662437,-500.0,0.00022054,2]
[329125420,1718124662447,-982.09,0.00022054,2]
[329125421,1718124662457,-500.0,0.00022054,2]
[329125422,1718124662470,-500.0,0.00022054,2]
[329125423,1718124662480,-500.0,0.00022054,2]
[329125424,1718124662496,-151.0,0.00022054,7]
[329125425,1718124662506,-151.0,0.00022054,7]
[329125426,1718124662517,-500.0,0.00022054,2]
[329125427,1718124662528,-1564.41,0.00022054,2]
[329125428,1718124662539,-500.0,0.00022054,2]
[329125429,1718124662550,-500.0,0.00022054,2]
[329125430,1718124662560,-657.1,0.00022054,2]
[329125431,1718124662570,-500.0,0.00022054,2]
[329125432,1718124662581,-500.0,0.00022054,2]
[329125433,1718124662592,-1373.09,0.00022054,2]
[329125434,1718124662603,-849.07,0.00022054,2]
[329125435,1718124662613,-645.5,0.00022054,2]
[329125436,1718124662626,-500.0,0.00022054,2]
[329125437,1718124662636,-500.0,0.00022054,2]
[329125438,1718124662647,-500.0,0.00022054,2]
[329125439,1718124662658,-1097.09,0.00022054,2]
[329125440,1718124662669,-679.06,0.00022054,2]
[329125441,1718124662680,-890.87,0.00022054,2]
[329125442,1718124662690,-817.49,0.00022054,2]
[329125443,1718124662701,-151.0,0.00022054,7]
[329125444,1718124662712,-548.6,0.00022054,2]
[329125445,1718124662722,-1425.09,0.00022054,2]
[329125446,1718124662734,-500.0,0.00022054,2]
[329125447,1718124662749,-1038.16,0.00022054,2]
[329125448,1718124662761,-802.71,0.00022054,2]
[329125449,1718124662771,-500.0,0.00022054,2]
[329125450,1718124662782,-1168.64,0.00022054,2]
[329125451,1718124662791,-500.0,0.00022054,2]
[329125452,1718124662802,-1137.43,0.00022054,2]
[329125453,1718124662813,-158.913245,0.00022054,7]
[329125454,1718124662823,-158.913245,0.00022054,7]
[329125455,1718124662834,-938.43,0.00022054,2]
[329125456,1718124662845,-1721.51,0.00022054,2]
[329125457,1718124662856,-500.0,0.00022054,2]
[329125458,1718124662867,-158.913245,0.00022054,7]
[329125459,1718124662878,-529.38,0.00022054,2]
[329125460,1718124662889,-2046.66,0.00022054,2]
[329125461,1718124662900,-158.913245,0.00022054,7]
[329125462,1718124662910,-796.01,0.00022054,2]
[329125463,1718124662920,-500.0,0.00022054,2]
[329125464,1718124662930,-500.0,0.00022054,2]
[329125465,1718124662940,-500.0,0.00022054,2]
[329125466,1718124662950,-945.77,0.00022054,2]
[329125467,1718124662960,-1181.25,0.00022054,2]
[329125468,1718124662970,-2270.34,0.00022054,2]
[329125469,1718124662980,-500.0,0.00022054,2]
[329125470,1718124662993,-500.0,0.00022054,2]
[329125471,1718124663003,-638.25,0.00022054,2]
[329125472,1718124663014,-500.0,0.00022054,2]
[329125473,1718124663025,-1190.74,0.00022054,2]
[329125474,1718124663035,-950.59,0.00022054,2]
[329125475,1718124663045,-607.47,0.00022054,2]
[329125476,1718124663056,-885.97,0.00022054,2]
[329125477,1718124663067,-500.0,0.00022054,2]
[329125478,1718124663077,-541.92,0.00022054,2]
[329125479,1718124663087,-529.02,0.00022054,2]
[329125480,1718124663097,-500.0,0.00022054,2]
[329125481,1718124663108,-500.0,0.00022054,2]
[329125482,1718124663118,-1012.18,0.00022054,2]
[329125483,1718124663128,-1695.75,0.00022054,2]
[329125484,1718124663139,-573.09,0.00022054,2]
[329125485,1718124663149,-159.32423,0.00022054,7]
[329125486,1718124663159,-159.32423,0.00022054,7]
[329125487,1718124663184,-500.0,0.00022054,2]
[329125488,1718124663195,-159.32423,0.00022054,7]
[329125489,1718124663205,-159.32423,0.00022054,7]
[329125490,1718124663216,-928.38,0.00022054,2]
[329125491,1718124663226,-500.0,0.00022054,2]
[329125492,1718124663237,-1157.85,0.00022054,2]
[329125493,1718124663250,-500.0,0.00022054,2]
[329125494,1718124663261,-500.0,0.00022054,2]
[329125495,1718124663271,-774.2,0.00022054,2]
[329125496,1718124663282,-876.37,0.00022054,2]
[329125497,1718124663293,-500.0,0.00022054,2]
[329125498,1718124663304,-500.0,0.00022054,2]
[329125499,1718124663314,-231.90481408,0.00022054,2]
[329125500,1718124663326,-151.0,0.00022054,7]
[329125501,1718124663337,-151.0,0.00022054,7]
[329125502,1718124663347,-619.88,0.00022054,2]
[329125503,1718124663358,-500.0,0.00022054,2]
[329125504,1718124663368,-554.72,0.00022054,2]
[329125505,1718124663379,-500.0,0.00022054,2]
[329125506,1718124663390,-500.0,0.00022054,2]
[329125507,1718124663400,-151.0,0.00022054,7]
[329125508,1718124663411,-151.0,0.00022054,7]
[329125509,1718124663423,-500.0,0.00022054,2]
[329125510,1718124663436,-500.0,0.00022054,2]
[329125511,1718124663446,-500.0,0.00022054,2]
[329125512,1718124663458,-1337.05,0.00022054,2]
[329125513,1718124663471,-500.0,0.00022054,2]
[329125514,1718124663482,-500.0,0.00022054,2]
[329125515,1718124663496,-602.91,0.00022054,2]
[329125516,1718124663508,-524.65754737,0.00022054,2]
[329125517,1718124663518,-500.0,0.00022054,2]
[329125518,1718124663528,-500.0,0.00022054,2]
[329125519,1718124663538,-500.0,0.00022054,2]
[329125520,1718124663549,-500.0,0.00022054,2]
[329125521,1718124663561,-535.86,0.00022054,2]
[329125522,1718124663571,-500.0,0.00022054,2]
[329125523,1718124663582,-1149.72,0.00022054,2]
[329125524,1718124663593,-1007.82,0.00022054,2]
[329125525,1718124663605,-772.02,0.00022054,2]
[329125526,1718124663617,-500.0,0.00022054,2]
[329125527,1718124663627,-500.0,0.00022054,2]
[329125528,1718124663639,-500.0,0.00022054,2]
[329125529,1718124663650,-500.0,0.00022054,2]
[329125530,1718124663660,-548.13,0.00022054,2]
[329125531,1718124663670,-500.0,0.00022054,2]
[329125532,1718124663681,-500.0,0.00022054,2]
[329125533,1718124663691,-500.0,0.00022054,2]
[329125534,1718124663702,-500.0,0.00022054,2]
[329125535,1718124663712,-500.0,0.00022054,2]
[329125536,1718124663722,-993.89,0.00022054,2]
[329125537,1718124663733,-251.84561402,0.00022054,2]
[329125538,1718124663747,-500.0,0.00022054,2]
[329125539,1718124663757,-500.0,0.00022054,2]
[329125540,1718124663768,-174.97732983,0.00022054,2]
[329125541,1718124663779,-500.0,0.00022054,2]
[329125542,1718124663790,-1541.14,0.00022054,2]
[329125543,1718124663800,-2253.37,0.00022054,2]
[329125544,1718124663811,-376.30170737,0.00022054,2]
[329125545,1718124663821,-535.49,0.00022054,2]
[329125546,1718124663832,-500.0,0.00022054,2]
[329125547,1718124663842,-844.76,0.00022054,2]
[329125548,1718124663852,-500.0,0.00022054,2]
[329125549,1718124663862,-500.0,0.00022054,2]
[329125550,1718124663873,-500.0,0.00022054,2]
[329125551,1718124663884,-500.0,0.00022054,2]
[329125552,1718124663894,-681.99,0.00022054,2]
[329125553,1718124663905,-151.0,0.00022054,7]
[329125554,1718124663916,-151.0,0.00022054,7]
[329125555,1718124663927,-500.0,0.00022054,2]
[329125556,1718124663937,-500.0,0.00022054,2]
[329125557,1718124663948,-1263.03,0.00022054,2]
[329125558,1718124663959,-1152.64,0.00022054,2]
[329125559,1718124663970,-631.91,0.00022054,2]
[329125560,1718124663981,-151.0,0.00022054,7]
[329125561,1718124663992,-151.0,0.00022054,7]
[329125562,1718124664003,-324.7771966,0.00022054,2]
[329125563,1718124664014,-1000.48,0.00022054,2]
[329125564,1718124664024,-500.0,0.00022054,2]
[329125565,1718124664035,-404.37478098,0.00022054,2]
[329125566,1718124664046,-500.0,0.00022054,2]
[329125567,1718124664057,-151.0,0.00022054,7]
[329125568,1718124664067,-221.68918,0.00022054,7]
[329125569,1718124664078,-171.223895,0.00022054,7]
[329125570,1718124664088,-221.68918,0.00022054,7]
[329125571,1718124664099,-837.91,0.00022054,2]
[329125572,1718124664110,-500.0,0.00022054,2]
[329125573,1718124664121,-2452.11,0.00022054,2]
[329125574,1718124664132,-500.0,0.00022054,2]
[329125575,1718124664142,-603.32,0.00022054,2]
[329125576,1718124664153,-221.68918,0.00022054,7]
[329125577,1718124664164,-221.68918,0.00022054,7]
[329125578,1718124664247,-513.54,0.00022054,2]
[329125579,1718124664258,-510.80026375,0.00022054,2]
[329125580,1718124664269,-2360.8,0.00022054,2]
[329125581,1718124664279,-500.0,0.00022054,2]
[329125582,1718124664290,-500.0,0.00022054,2]
[329125583,1718124664300,-570.18,0.00022054,2]
[329125584,1718124664311,-500.0,0.00022054,2]
[329125585,1718124664321,-214.583815,0.00022054,7]
[329125586,1718124664332,-214.583815,0.00022054,7]
[329125587,1718124664342,-500.0,0.00022054,2]
[329125588,1718124664353,-214.583815,0.00022054,7]
[329125589,1718124664363,-214.583815,0.00022054,7]
[329125590,1718124664373,-511.09607297,0.00022054,2]
[329125591,1718124664384,-1381.08,0.00022054,2]
[329125592,1718124664394,-500.0,0.00022054,2]
[329125593,1718124664404,-500.0,0.00022054,2]
[329125594,1718124664414,-500.0,0.00022054,2]
[329125595,1718124664425,-151.0,0.00022054,7]
[329125596,1718124664439,-500.0,0.00022054,2]
[329125597,1718124664450,-151.0,0.00022054,7]
[329125598,1718124664460,-500.0,0.00022054,2]
[329125599,1718124664471,-790.33,0.00022054,2]
[329125600,1718124664481,-1639.53,0.00022054,2]
[329125601,1718124664493,-1174.16,0.00022054,2]
[329125602,1718124664503,-500.0,0.00022054,2]
[329125603,1718124664517,-852.46,0.00022054,2]
[329125604,1718124664528,-500.0,0.00022054,2]
[329125605,1718124664538,-500.0,0.00022054,2]
[329125606,1718124664548,-1741.95,0.00022054,2]
[329125607,1718124664558,-500.0,0.00022054,2]
[329125608,1718124664569,-551.70987804,0.00022054,2]
[329125609,1718124664579,-500.0,0.00022054,2]
[329125610,1718124664589,-500.0,0.00022054,2]
[329125611,1718124664600,-507.31920859,0.00022054,2]
[329125612,1718124664611,-500.0,0.00022054,2]
[329125613,1718124664621,-500.0,0.00022054,2]
[329125614,1718124664631,-500.0,0.00022054,2]
[329125615,1718124664642,-151.0,0.00022054,7]
[329125616,1718124664653,-178.254448,0.00022054,7]
[329125617,1718124664664,-500.0,0.00022054,2]
[329125618,1718124664674,-1925.78,0.00022054,2]
[329125619,1718124664685,-500.0,0.00022054,2]
[329125620,1718124664695,-500.0,0.00022054,2]
[329125621,1718124664705,-500.0,0.00022054,2]
[329125622,1718124664715,-2274.11,0.00022054,2]
[329125623,1718124664725,-151.0,0.00022054,7]